[Event "European Women-ch 2023"]
[Site "Petrovac"]
[Date "2023.03.19"]
[Round "2.21"]
[White "Gamal, Alaa"]
[Black "Hapala, Elisabeth"]
[Result "0-1"]
[ECO "E11"]
[WhiteElo "1748"]
[BlackElo "2072"]
[Annotator "TA"]
[PlyCount "104"]
[EventDate "2023.03.15"]
[EventType "swiss"]
[EventCountry "MNE"]
[SourceTitle "playchess.com"]
[Source "ChessBase"]
[SourceQuality "1"]
[TimeControl "40/5400+30:1800+30"]

{[%evp 10,104,18,12,33,25,25,12,26,0,18,13,60,51,49,39,45,37,50,8,29,31,28,19,29,16,27,11,54,-25,-20,-21,-27,-25,-28,-91,0,-65,24,-29,70,49,52,46,89,84,83,85,73,52,151,37,52,43,57,0,31,21,36,33,49,28,67,23,31,0,0,-20,-26,-39,-14,-40,-34,-50,-51,-236,-236,-249,-241,-526,-531,-504,-468,-1272,-1271,-1213,-1173,-5701,-775,-737,-604,-12833,-12833,-12840,-12839,-29997,-29998]} 1. d4 {[%emt 0:00:08]} Nf6 {[%emt 0:00:05]} 2. c4 {[%emt 0:00:05]} e6 {[%emt 0:00:03]} 3. Nf3 {[%emt 0:00:05]} Bb4+ {[%emt 0:00:05]} 4. Nbd2 {[%emt 0:00:07]} O-O {[%emt 0:00:12]} 5. a3 {[%emt 0:00:05]} Be7 {[%emt 0:00:05]} 6. e4 {[%emt 0:00:10]} d6 {[%emt 0:00:04][%cal Oe6e5] E11: Bogo-Indian.} (6... d5 $5 {[%cal Rd5e4]}) 7. Bd3 {[%emt 0:00:25]} e5 {[%emt 0:04:57]} 8. d5 {[%emt 0:10:31]} a5 {[%emt 0:01:46] [#] The position is equal.} 9. h3 $146 {[%emt 0:02:51]} ({Predecessor:} 9. Bc2 Bd7 10. b3 Na6 11. O-O b5 12. cxb5 Bxb5 13. Re1 Nc5 14. a4 Ba6 15. Ba3 {½-½ Suleymanli,A (2552)-Predke,A (2684) EU-ch 23rd Vrnjacka Banja 2023 (4)}) 9... a4 {[%emt 0:04:58]} 10. Nb1 {[%emt 0:00:15]} Nbd7 {[%emt 0:04:28]} (10... Nfd7 $11) 11. Nc3 $14 {[%emt 0:00:04]} Nc5 {[%emt 0:00:05]} 12. Bc2 $1 {[%emt 0:00:24]} c6 {[%emt 0:05:18]} 13. Be3 {[%emt 0:00:32]} Nfd7 {[%emt 0:01:54]} 14. g4 {[%emt 0:01:08]} Qa5 {[%emt 0:04:13]} 15. O-O {[%emt 0:02:16]} Nb6 {[%emt 0:07:17]} 16. Nd2 {[%emt 0:01:09]} cxd5 {[%emt 0:09:52]} 17. cxd5 {[%emt 0:08:49]} Bd7 {[%emt 0:01:18]} 18. Qe2 {[%emt 0:05:03]} Qa6 {[%emt 0:21:50]} 19. Qf3 {[%emt 0:13:54]} ({Better is} 19. Qxa6 $14 bxa6 20. Bxc5 dxc5 21. Rfd1) 19... Nc4 $11 {[%emt 0:03:22]} 20. Nxc4 {[%emt 0:01:41]} Qxc4 {[%emt 0:00:01]} 21. Rad1 {[%emt 0:00:20]} Rfc8 {[%emt 0:08:45]} 22. Qg3 {[%emt 0:01:53]} (22. Rc1 $11) 22... Be8 {[%emt 0:05:36] Black is more active.} (22... b5 $17) 23. h4 {[%emt 0:00:43]} (23. Bb1 $11) 23... Nd7 {[%emt 0:05:16]} (23... b5 $15) 24. g5 {[%emt 0:01:39]} (24. Bd3 $142 Qb3 25. Rb1) 24... f6 {[%emt 0:03:53]} (24... b5 $1 $11) 25. Bd3 {[%emt 0:01:07]} Qc7 {[%emt 0:00:19]} 26. Be2 {[%emt 0:02:50]} fxg5 {[%emt 0:01:55]} 27. hxg5 {[%emt 0:00:13]} Nf8 {[%emt 0:00:28]} 28. Bg4 {[%emt 0:01:59]} Bd7 {[%emt 0:00:01]} 29. Bh5 {[%emt 0:00:35] [#] Hoping for f4.} Qd8 {[%emt 0:00:26]} (29... Be8 $1 $14 30. Bg4 Bd7) 30. Kg2 {[%emt 0:03:24]} ({White should play} 30. f4 $16 exf4 31. Qxf4) 30... Be8 $1 $14 {[%emt 0:00:17]} (30... Ng6 $2 31. Bxg6 hxg6 32. Rh1 $18) 31. Bg4 {[%emt 0:01:46]} Bd7 {[%emt 0:00:02]} 32. Bh5 {[%emt 0:00:47]} (32. Bf5 $14) 32... b5 {[%emt 0:01:38][%cal Ob5b4]} (32... Ng6 $2 33. Bxg6 hxg6 34. f4 Rxc3 35. bxc3 $18) (32... Be8 $5 {[%cal Re8h5]} 33. Bg4 Bd7 $16) 33. Rh1 {[%emt 0:02:48]} (33. f4 {looks sharper.} exf4 34. Bf7+ Kh8 35. Bxf4 b4 36. axb4 a3 37. bxa3 Rxa3 38. Rf3) 33... Be8 {[%emt 0:01:02]} 34. Bg4 {[%emt 0:11:00]} Bd7 {[%emt 0:00:05]} 35. Bf5 {[%emt 0:00:27]} g6 {[%emt 0:03:51]} 36. Bh3 {[%emt 0:02:04]} Rc4 {[%emt 0:00:29][%cal Bc8c4,Bc4b4,Bb4b3][%mdl 32]} 37. Rc1 {[%emt 0:09:37]} b4 {[%emt 0:01:00]} 38. axb4 {[%emt 0:01:21]} Rxb4 {[%emt 0:00:01]} 39. Bxd7 {[%emt 0:01:41]} Qxd7 {[%emt 0:00:04]} 40. Rc2 {[%emt 0:00:00]} Qb7 {[%emt 0:00:00]} 41. Bc1 {[%emt 0:02:00]} Rc8 {[%emt 0:07:05]} 42. f3 $2 {[%emt 0:03:45] [#] White does not recover from this.} (42. Qg4 $15) 42... Rb3 $1 $19 {[%emt 0:03:25][%cal Oa4a3] Strongly threatening ...a3!} 43. Qe1 {[%emt 0:15:31]} Bd8 {[%emt 0:01:04]} 44. Rh2 $2 {[%emt 0:05:21]} (44. Qe3) 44... Ba5 {[%emt 0:03:29]} 45. Kg3 {[%emt 0:06:54]} a3 {[%emt 0:00:56][%cal Ba4a3,Ba3b2][%mdl 32]} 46. Bd2 {[%emt 0:02:55]} (46. Qd1 $142) 46... axb2 {[%emt 0:03:22] ...Bxc3 is the strong threat.} 47. Qb1 {[%emt 0:01:48]} Bxc3 {[%emt 0:00:38]} 48. Bxc3 {[%emt 0:00:05]} Rcxc3 {[%emt 0:00:22]} (48... Qf7 $142 49. Rhf2 Rcxc3 50. Rxc3 Qf4+ 51. Kh3 Rxc3 52. Qxb2 Rxf3+ 53. Rxf3 Qxf3+ 54. Kh2 Qh5+ 55. Kg2 Qxg5+ 56. Kh3 Qe3+ 57. Kh2 Qxe4) 49. Rxc3 {[%emt 0:00:35]} Rxc3 {[%emt 0:00:02]} 50. Rxb2 {[%emt 0:00:05]} Qf7 {[%emt 0:00:37]} 51. Qh1 {[%emt 0:00:23]} Qf4+ {[%emt 0:00:13]} 52. Kg2 {[%emt 0:01:44]} Qxf3+ {[%emt 0:00:13] Weighted Error Value: White=0.73/Black=0.27 (precise)} 0-1

[Event "European Women-ch 2023"]
[Site "Petrovac"]
[Date "2023.03.19"]
[Round "2.22"]
[White "Berke, Ana"]
[Black "Melia, Salome"]
[Result "1/2-1/2"]
[ECO "B51"]
[WhiteElo "2107"]
[BlackElo "2366"]
[Annotator "TA"]
[PlyCount "87"]
[EventDate "2023.03.15"]
[EventType "swiss"]
[EventCountry "MNE"]
[SourceTitle "playchess.com"]
[Source "ChessBase"]
[SourceQuality "1"]
[TimeControl "40/5400+30:1800+30"]

{[%evp 9,87,0,0,0,14,0,33,0,0,-18,0,0,0,-12,-8,-11,-19,-33,-26,-27,-18,-19,-24,-35,0,0,0,0,5,8,21,0,50,0,6,-2,-10,-14,-15,0,0,0,0,0,0,0,0,-35,0,-14,0,-16,0,0,0,0,0,0,0,0,0,5,27,35,94,82,85,0,0,0,0,0,0,0,0,0,0,0,0,0]} 1. e4 {[%emt 0:00:06]} c5 {[%emt 0:00:04]} 2. Nf3 {[%emt 0:00:22]} Nc6 {[%emt 0:00:08]} 3. Bb5 {[%emt 0:00:21]} d6 {[%emt 0:00:49]} 4. Bxc6+ {[%emt 0:01:59]} bxc6 {[%emt 0:00:27]} 5. e5 {[%emt 0:01:32]} dxe5 {[%emt 0:01:09]} 6. Nxe5 {[%emt 0:01:05] B51: Sicilian: Moscow Variation (3 Bb5+) without 3...Bd7.} Qd5 {[%emt 0:00:05][%csl LRe5,LRg2]} 7. Nf3 {[%emt 0:00:12]} Qe4+ {[%emt 0:00:37]} 8. Qe2 {[%emt 0:02:05] White is slightly better.} Qxc2 {[%emt 0:00:41] [#]} 9. Na3 $146 {[%emt 0:02:18]} ({Predecessor:} 9. Nc3 Nf6 10. Ne5 Nd7 11. O-O Nxe5 12. Qxe5 Qf5 13. Qc7 Qd7 14. Qa5 g6 15. d3 {0-1 Rausis,I (2501)-Dreev,A (2688) Keres Memorial rapid 2009 (2)}) 9... Qf5 {[%emt 0:11:40]} 10. O-O {[%emt 0:01:40]} Nf6 {[%emt 0:00:16]} 11. d4 {[%emt 0:03:43]} e6 {[%emt 0:02:11]} 12. Be3 {[%emt 0:01:28]} Nd5 {[%emt 0:10:19]} 13. Nc4 {[%emt 0:10:16]} Be7 {[%emt 0:10:12]} (13... Ba6 {looks sharper.} 14. Rac1 cxd4 15. Nxd4 Qe4) 14. Rac1 {[%emt 0:03:50]} O-O {[%emt 0:08:02]} 15. dxc5 {[%emt 0:05:05]} Ba6 {[%emt 0:03:21]} 16. Rfe1 {[%emt 0:05:32]} Qh5 {[%emt 0:07:13]} 17. Qc2 {[%emt 0:06:08]} Bxc4 {[%emt 0:15:00]} 18. Qxc4 {[%emt 0:00:17]} Rab8 {[%emt 0:04:40]} 19. Bd4 {[%emt 0:06:04]} Rb4 {[%emt 0:03:10]} 20. Qc2 {[%emt 0:02:30]} Nf4 {[%emt 0:01:36]} (20... Bf6 $11 21. Be5 Qg6) 21. Be5 {[%emt 0:03:14] [#] Black must now prevent a3.} Bf6 {[%emt 0:10:18]} 22. Bxf4 {[%emt 0:05:12]} (22. b3 {seems wilder.} a5 23. Rcd1 Qg4 24. Bxf4 Rxf4 25. h3) 22... Rxf4 {[%emt 0:00:01]} 23. b3 {[%emt 0:04:20]} g6 {[%emt 0:03:33]} 24. Red1 {[%emt 0:06:26]} e5 {[%emt 0:03:25]} 25. Re1 {[%emt 0:06:43]} Re8 {[%emt 0:00:19]} 26. Re4 {[%emt 0:01:31]} Qf5 {[%emt 0:01:01]} 27. Rce1 {[%emt 0:00:40]} Rd8 {[%emt 0:00:36]} 28. h3 {[%emt 0:01:35]} Rd5 {[%emt 0:01:02]} 29. b4 {[%emt 0:00:41]} Rxe4 {[%emt 0:01:27]} (29... Kg7 {keeps more tension.} 30. R1e3 Qd7 31. Nxe5 Bxe5 32. Rxe5 Rxe5 33. Rxe5 Qd4) 30. Rxe4 {[%emt 0:01:45]} Qd7 {[%emt 0:00:18]} 31. a4 {[%emt 0:02:52]} Bg7 {[%emt 0:00:15]} 32. Re2 {[%emt 0:01:05]} f5 {[%emt 0:01:05]} 33. Rd2 {[%emt 0:01:38][%cal Ob4b5] Strongly threatening b5!} e4 {[%emt 0:00:46]} 34. Rxd5 {[%emt 0:00:21]} Qxd5 $11 {[%emt 0:00:17][%mdl 4096] Endgame KQB-KQN} 35. Nd2 {[%emt 0:01:07]} Bh6 {[%emt 0:01:15]} 36. Nf1 {[%emt 0:01:52] aiming for b5.} f4 {[%emt 0:00:22] [#]} (36... Kf8 $14) 37. b5 $1 $16 {[%emt 0:01:43]} Bf8 {[%emt 0:00:44]} 38. bxc6 {[%emt 0:04:09]} (38. Nd2 $16 e3 39. Ne4) 38... Qxc6 $11 {[%emt 0:00:13] The position is equal.} 39. Qc4+ {[%emt 0:01:05]} Kg7 {[%emt 0:00:29]} 40. Qd4+ {[%emt 0:00:00]} Kf7 {[%emt 0:00:00]} 41. Qc4+ {[%emt 0:03:49]} Kg7 {[%emt 0:11:28]} 42. Qd4+ {[%emt 0:03:29]} Kf7 {[%emt 0:00:19]} 43. Qc4+ {[%emt 0:00:05]} Kg7 {[%emt 0:08:40]} 44. Qd4+ {[%emt 0:00:10] Weighted Error Value: White=0.08 (flawless) /Black=0.09 (flawless)} 1/2-1/2

[Event "European Women-ch 2023"]
[Site "Petrovac"]
[Date "2023.03.19"]
[Round "2.23"]
[White "Golsta, Ramona"]
[Black "Gaponenko, Inna"]
[Result "0-1"]
[ECO "E24"]
[WhiteElo "1760"]
[BlackElo "2349"]
[Annotator "TA"]
[PlyCount "132"]
[EventDate "2023.03.15"]
[EventType "swiss"]
[EventCountry "MNE"]
[SourceTitle "playchess.com"]
[Source "ChessBase"]
[SourceQuality "1"]
[TimeControl "40/5400+30:1800+30"]

{[%evp 15,132,-28,-14,-50,-31,-57,-18,-106,-85,-121,-122,-114,-98,-98,-89,-97,-97,-102,-92,-94,-88,-121,-118,-141,-139,-139,-139,-134,-133,-145,-154,-165,-165,-249,-237,-243,-147,-239,-233,-214,-190,-252,-116,-116,-116,-111,-104,-98,-32,-37,-14,-15,-16,-8,-11,-95,-73,-67,0,0,0,0,0,0,0,0,0,0,0,0,0,0,0,0,0,0,0,0,0,0,0,0,0,0,8,0,8,0,8,0,0,0,0,0,0,-22,0,-349,-220,-1458,-1302,-5481,-1575,-29968,-29968,-29965,-29961,-29950,-12849,-6901,-6374,-5214,-1796,-29986,-29987,-29987,-29988,-29988,-29989]} 1. d4 {[%emt 0:00:01]} Nf6 {[%emt 0:00:06]} 2. c4 {[%emt 0:00:05]} e6 {[%emt 0:00:28]} 3. Nc3 {[%emt 0:00:06]} Bb4 {[%emt 0:00:12]} 4. f3 {[%emt 0:00:11]} d5 {[%emt 0:00:54]} 5. a3 {[%emt 0:00:35]} Bxc3+ {[%emt 0:00:20]} 6. bxc3 {[%emt 0:00:05]} O-O {[%emt 0:00:58]} 7. e3 {[%emt 0:09:31]} c5 {[%emt 0:01:44]} 8. cxd5 {[%emt 0:02:44]} Nxd5 {[%emt 0:00:48]} 9. Bd3 {[%emt 0:08:50] E24: Nimzo-Indian: Sämisch: Unusual Black 5th moves and 5...c5 sidelines.} Nxc3 {[%emt 0:16:08] [#]} 10. Qc2 $146 {[%emt 0:25:18]} ({Predecessor:} 10. Bxh7+ Kxh7 11. Qd3+ Kh8 12. Qxc3 cxd4 13. exd4 Qh4+ 14. g3 Qf6 15. h4 b6 16. h5 Bb7 {½-½ Wojnar,M-Lefik,W POL-ch39 corr9698 1996}) 10... cxd4 {[%emt 0:01:42]} 11. Bb2 {[%emt 0:01:42]} (11. Bxh7+ $11 Kh8 12. Bd3) 11... h6 {[%emt 0:25:39]} 12. Bxc3 {[%emt 0:04:46]} dxc3 {[%emt 0:00:25]} 13. Ne2 {[%emt 0:00:33]} Nc6 {[%emt 0:04:28]} 14. Qxc3 {[%emt 0:03:15]} Qa5 {[%emt 0:03:34]} 15. Rc1 {[%emt 0:01:15]} Bd7 {[%emt 0:20:43]} 16. Kf2 {[%emt 0:05:43]} Qxc3 {[%emt 0:00:35]} 17. Rxc3 {[%emt 0:00:27]} Rac8 {[%emt 0:01:35]} 18. Rd1 {[%emt 0:05:41][%cal Od3h7]} Ne5 {[%emt 0:02:31]} 19. Be4 {[%emt 0:02:36]} Rxc3 {[%emt 0:01:04]} 20. Nxc3 {[%emt 0:00:11]} Rc8 {[%emt 0:00:47]} 21. Ne2 {[%emt 0:05:13]} Rc7 {[%emt 0:03:07]} 22. Nd4 {[%emt 0:02:18]} Kf8 {[%emt 0:01:56]} 23. Rb1 {[%emt 0:04:09]} b6 {[%emt 0:01:16]} 24. f4 {[%emt 0:05:54]} (24. Rb3 $142) 24... Ng4+ $19 {[%emt 0:01:32]} 25. Kf3 {[%emt 0:00:17]} Nf6 {[%emt 0:07:12]} (25... Nxh2+ $2 {too greedy.} 26. Kg3 f5 27. Bxf5 exf5 28. Kxh2) 26. g4 {[%emt 0:02:21]} (26. Bd3 $17) 26... Rc3 {[%emt 0:01:32]} 27. Rb3 {[%emt 0:02:56]} Rc1 {[%emt 0:01:53]} 28. Bd3 {[%emt 0:01:04]} (28. Rb1 $142 Rc3 29. Rb3) 28... Bc6+ {[%emt 0:00:41]} (28... e5 $19 {and Black stays clearly on top.} 29. fxe5 Nxg4) 29. Nxc6 $17 {[%emt 0:01:43]} Rxc6 {[%emt 0:00:01][%mdl 4096] Endgame KRB-KRN} 30. h4 {[%emt 0:00:32]} h5 {[%emt 0:00:39]} 31. g5 {[%emt 0:01:27]} Ng4 {[%emt 0:00:14]} (31... Ne8 $17 32. Ke2 Nd6) 32. Bb5 $15 {[%emt 0:01:35]} Rc2 {[%emt 0:00:51]} 33. Rd3 $1 {[%emt 0:00:26]} g6 {[%emt 0:00:37]} 34. Rd8+ $1 {[%emt 0:00:58]} Kg7 {[%emt 0:00:01]} 35. Rd7 {[%emt 0:00:33]} (35. Be8 $1 $11 {keeps the balance.}) 35... Rc3 {[%emt 0:01:01]} 36. Rd3 {[%emt 0:00:10]} Rxd3 {[%emt 0:00:38]} (36... Rc5 $15 37. a4 Rc1) 37. Bxd3 {[%emt 0:00:01] KB-KN} Kf8 {[%emt 0:00:29]} 38. Bb5 {[%emt 0:00:59]} Ke7 {[%emt 0:00:16]} 39. Bd3 {[%emt 0:01:04]} f5 {[%emt 0:00:47]} 40. Bc2 {[%emt 0:00:00]} e5 {[%emt 0:00:00] [#] ...e4+ is the strong threat.} 41. e4 {[%emt 0:16:14]} fxe4+ {[%emt 0:03:28]} 42. Bxe4 {[%emt 0:00:30]} exf4 {[%emt 0:00:06]} 43. Kxf4 {[%emt 0:00:49]} Kf7 {[%emt 0:00:04]} 44. Bd5+ {[%emt 0:01:51]} Kf8 {[%emt 0:18:05]} 45. Bb3 {[%emt 0:09:40]} Nh2 {[%emt 0:06:43]} 46. Bc4 {[%emt 0:00:35]} Ng4 {[%emt 0:00:31]} 47. Bb3 {[%emt 0:00:06]} Ke7 {[%emt 0:00:42]} 48. Bc2 {[%emt 0:00:15]} Kf7 {[%emt 0:00:04]} 49. Bb3+ {[%emt 0:00:06]} Kg7 {[%emt 0:01:57]} 50. Bd1 {[%emt 0:01:23]} Nf2 {[%emt 0:00:27]} 51. Be2 {[%emt 0:00:10]} Kf7 {[%emt 0:00:37]} 52. Kf3 {[%emt 0:03:34]} Ng4 {[%emt 0:00:11]} 53. Kf4 {[%emt 0:00:10]} Ke6 {[%emt 0:01:47]} 54. Bd3 {[%emt 0:01:33]} Ne5 {[%emt 0:00:18]} 55. Bc2 {[%emt 0:00:33]} Kd5 {[%emt 0:00:39] White must now prevent ...Kd4.} (55... b5 $5 {[%cal Re6d5]}) 56. Be4+ $2 {[%emt 0:01:58][%mdl 8192]} (56. Ba4 $11 {and White has nothing to worry.}) 56... Kd4 $19 {[%emt 0:00:19] aiming for ...b5.} 57. Bc2 $2 {[%emt 0:00:23]} (57. Bb7) 57... b5 {[%emt 0:00:29]} 58. Bd1 {[%emt 0:00:56]} a5 {[%emt 0:00:41][%cal Ba7a5,Ba5b4,Bb4b3,Bb3b2][%mdl 32]} 59. Be2 {[%emt 0:00:53]} b4 {[%emt 0:00:17]} 60. axb4 {[%emt 0:00:04]} axb4 {[%emt 0:00:03]} 61. Bd1 {[%emt 0:00:37]} Nd3+ {[%emt 0:01:37]} 62. Kf3 {[%emt 0:00:10]} Nc5 {[%emt 0:02:18] ( -> ...Kd3)} 63. Bc2 {[%emt 0:00:21] [#]} b3 $1 {[%emt 0:00:12]} 64. Bxg6 {[%emt 0:01:02]} Nd3 {[%emt 0:00:03] Black mates.} 65. Bxd3 {[%emt 0:00:14]} Kxd3 {[%emt 0:00:04]} 66. g6 {[%emt 0:00:03]} b2 {[%emt 0:00:05] Weighted Error Value: White=0.70/Black=0.12 (very precise)} 0-1

[Event "European Women-ch 2023"]
[Site "Petrovac"]
[Date "2023.03.19"]
[Round "2.24"]
[White "Daulyte-Cornette, Deimante"]
[Black "Spalir, Monika"]
[Result "1-0"]
[ECO "C45"]
[WhiteElo "2344"]
[BlackElo "2125"]
[Annotator "TA"]
[PlyCount "91"]
[EventDate "2023.03.15"]
[EventType "swiss"]
[EventCountry "MNE"]
[SourceTitle "playchess.com"]
[Source "ChessBase"]
[SourceQuality "1"]
[TimeControl "40/5400+30:1800+30"]

{[%evp 14,91,0,0,0,0,29,30,62,60,53,52,93,91,100,65,112,112,112,108,117,78,91,73,206,209,234,204,217,200,195,176,149,172,268,265,239,127,127,125,124,121,289,198,215,203,188,160,29969,29970,6043,29970,29970,29971,12535,29943,10605,7447,29978,29979,29979,29980,29982,29983,29983,29984,29984,29985,29985,29986,29986,29987,29988,29988,29989,29990,29991,29992,29994,29995]} 1. e4 {[%emt 0:00:03] Besenthal,Klaus Guenter} e5 {[%emt 0:00:05]} 2. Nf3 {[%emt 0:00:08]} Nc6 {[%emt 0:00:02]} 3. d4 {[%emt 0:00:08]} exd4 {[%emt 0:00:08]} 4. Nxd4 {[%emt 0:00:05]} Bc5 {[%emt 0:00:08]} 5. Nb3 {[%emt 0:00:12]} Bb6 {[%emt 0:00:22]} 6. Nc3 {[%emt 0:00:17]} Nf6 {[%emt 0:01:59]} 7. Bg5 {[%emt 0:00:19]} h6 {[%emt 0:02:54]} 8. Bh4 {[%emt 0:00:10]} d6 {[%emt 0:09:22][%cal Of6e4] 8...0-0 is more fashionable. C45: Scotch Game.} 9. f3 {[%emt 0:01:27]} Be6 {[%emt 0:03:14]} 10. Bb5 {[%emt 0:00:40]} a6 {[%emt 0:04:27] White has an edge.} 11. Bxc6+ {[%emt 0:00:15]} bxc6 {[%emt 0:00:06]} 12. Qe2 {[%emt 0:00:13]} g5 {[%emt 0:01:58]} 13. Bf2 {[%emt 0:00:16]} Bxf2+ {[%emt 0:05:05]} 14. Qxf2 {[%emt 0:00:08] [#]} (14. Kxf2 $6 Nd7 $11) 14... a5 $146 {[%emt 0:00:47]} (14... Nd7 $14) ({Predecessor:} 14... Qe7 15. O-O-O a5 16. Nd4 Bd7 17. h4 g4 18. Nf5 Qe5 19. f4 Nxe4 20. Nxd6+ Qxd6 21. Nxe4 Qe7 22. Qd4 {1-0 Giri,A (2782)-Fressinet,L (2687) Paris GCT rapid 2016 (6)}) 15. O-O-O {[%emt 0:05:37]} Bxb3 {[%emt 0:05:23]} 16. axb3 {[%emt 0:02:25] Threatens to win with e5.} Nd7 {[%emt 0:00:04]} 17. h4 {[%emt 0:05:05] White is more active.} Qf6 {[%emt 0:04:53]} 18. g3 {[%emt 0:17:57]} Nb6 {[%emt 0:10:42] [#]} (18... Kd8 $16) 19. e5 $1 $18 {[%emt 0:05:13][%mdl 512]} dxe5 {[%emt 0:00:50]} 20. Ne4 {[%emt 0:00:10]} Qe7 {[%emt 0:06:09]} 21. hxg5 {[%emt 0:01:07]} a4 {[%emt 0:01:23]} 22. Rxh6 {[%emt 0:15:00]} ({But not} 22. gxh6 $6 axb3 23. cxb3 Nd5 $16) 22... Rxh6 {[%emt 0:00:38]} 23. gxh6 {[%emt 0:00:05]} f5 {[%emt 0:00:51] [#]} (23... axb3 {was worth a try.} 24. Kb1 (24. cxb3 f5 $18) 24... Kf8) 24. Nd6+ $1 {[%emt 0:17:37][%mdl 576] Double Attack} Kf8 {[%emt 0:08:54] [#] ...axb3 would be deadly.} 25. Nxf5 {[%emt 0:01:14]} (25. bxa4 $1 $18 Nxa4 26. Nxf5 Qg5+ 27. Ne3) 25... Qg5+ $16 {[%emt 0:00:56]} 26. Ne3 {[%emt 0:01:50]} axb3 {[%emt 0:01:48] aiming for ...Nc4.} 27. Kb1 {[%emt 0:00:32]} Qg8 {[%emt 0:16:17]} (27... Qxh6 $16 {keeps fighting.} 28. cxb3 (28. Ng4 Qg6 $16) 28... Qg6+ 29. Nc2 Nd5) 28. f4 {[%emt 0:07:08][%cal Bf3f4,Bf4e5][%mdl 32]} bxc2+ {[%emt 0:01:57]} 29. Nxc2 {[%emt 0:01:29] Hoping for Qc5+.} Qa2+ {[%emt 0:02:15]} 30. Kc1 {[%emt 0:00:05] Qc5+ is the strong threat.} Nc4 $2 {[%emt 0:00:43]} (30... Qe6 $16 31. fxe5+ Kg8) 31. fxe5+ {[%emt 0:02:03][%mdl 64] Discovered Attack} (31. Rd7 Qxb2+ 32. Kd1 Qb1+ 33. Ke2 Qxc2+ 34. Kf1 Ra1+ 35. Kg2 Qe4+ 36. Kh3 Rh1+ 37. Kg4 Ne3+) 31... Ke8 {[%emt 0:00:16]} 32. Qd4 {[%emt 0:00:17]} Qxb2+ {[%emt 0:01:56]} 33. Qxb2 {[%emt 0:00:07]} Nxb2 {[%emt 0:00:02]} 34. Kxb2 {[%emt 0:00:11][%mdl 4096] Endgame KRN-KR} Kf7 {[%emt 0:02:54]} 35. Rh1 {[%emt 0:01:49] Kc3 would kill now.} Ke6 {[%emt 0:01:33]} 36. h7 {[%emt 0:00:13] White mates.} Rh8 {[%emt 0:00:03]} 37. Rh5 {[%emt 0:00:15]} c5 {[%emt 0:00:15]} 38. Ne3 {[%emt 0:00:17]} Kf7 {[%emt 0:00:45]} 39. Nd5 {[%emt 0:00:33]} Kg7 {[%emt 0:01:31]} 40. Nf6 {[%emt 0:00:00]} Kg6 {[%emt 0:00:00]} 41. g4 {[%emt 0:01:19]} c4 {[%emt 0:01:12]} 42. Kc3 {[%emt 0:00:25]} c5 {[%emt 0:00:30]} 43. Kxc4 {[%emt 0:00:47]} Kf7 {[%emt 0:00:04]} 44. Rg5 {[%emt 0:00:30]} Ke7 {[%emt 0:00:08]} 45. Rg8 {[%emt 0:00:29]} Rxg8 {[%emt 0:00:06]} 46. Nxg8+ {[%emt 0:00:16] A cool game by Daulyte-Cornette.   Weighted Error Value: White=0.14 (very precise) /Black=0.64} 1-0

[Event "European Women-ch 2023"]
[Site "Petrovac"]
[Date "2023.03.19"]
[Round "2.25"]
[White "Dylag, Emilia"]
[Black "Gueci, Tea"]
[Result "1-0"]
[ECO "A63"]
[WhiteElo "2052"]
[BlackElo "2227"]
[Annotator "TA"]
[PlyCount "67"]
[EventDate "2023.03.15"]
[EventType "swiss"]
[EventCountry "MNE"]
[SourceTitle "playchess.com"]
[Source "ChessBase"]
[SourceQuality "1"]
[TimeControl "40/5400+30:1800+30"]

{[%evp 24,67,27,0,0,0,0,0,0,0,0,0,17,0,48,57,50,51,57,64,51,53,60,71,247,237,327,327,453,447,837,829,879,881,864,817,796,294,1916,1835,1800,2275,29988,29989,29989,29990]} 1. d4 {[%emt 0:00:03]} Nf6 {[%emt 0:00:04]} 2. c4 {[%emt 0:00:10]} e6 {[%emt 0:00:03]} 3. g3 {[%emt 0:00:11]} c5 {[%emt 0:00:05]} 4. d5 {[%emt 0:00:08]} exd5 {[%emt 0:00:05]} 5. cxd5 {[%emt 0:00:09]} d6 {[%emt 0:00:05]} 6. Nc3 {[%emt 0:00:23]} g6 {[%emt 0:00:06]} 7. Bg2 {[%emt 0:00:12]} Bg7 {[%emt 0:00:05]} 8. Nf3 {[%emt 0:00:11]} O-O {[%emt 0:00:07]} 9. O-O {[%emt 0:00:07]} Nbd7 {[%emt 0:00:03]} 10. Bf4 {[%emt 0:01:43]} Qe7 {[%emt 0:00:08]} 11. a4 {[%emt 0:00:42]} a6 {[%emt 0:00:06]} 12. Re1 $1 {[%emt 0:11:46][%mdl 4] is currently scoring better than 12.h3.} Rb8 {[%emt 0:02:08]} 13. e4 {[%emt 0:07:55] aiming for e5.} Ng4 {[%emt 0:00:40] A63: Modern Benoni: Fianchetto Variation: 9...Nbd7.} 14. Bg5 {[%emt 0:03:41]} f6 {[%emt 0:04:41]} 15. Bc1 {[%emt 0:07:14] [#]} Nge5 $146 {[%emt 0:08:31] The position is equal.} (15... Nde5 {looks sharper.} 16. Nh4 c4 17. h3 Nh6) ({Predecessor:} 15... Re8 16. Bf1 Nde5 17. Nd2 f5 18. h3 Nh6 19. exf5 Nxf5 20. Bg2 Bd7 21. Nde4 h6 {0-1 Shahtahtinsky,A (2325)-Papaioannou,I (2470) Ikaros/Thessaloniki 1997 (10)}) 16. Nxe5 {[%emt 0:02:01]} Nxe5 {[%emt 0:00:47]} 17. f4 {[%emt 0:04:55]} Nf7 {[%emt 0:03:44]} 18. Be3 {[%emt 0:10:28]} b5 {[%emt 0:07:44]} (18... Re8 $11 {was preferrable.}) 19. axb5 $14 {[%emt 0:00:30]} axb5 {[%emt 0:00:04] [#]} 20. b4 $1 {[%emt 0:05:52]} f5 $1 {[%emt 0:16:35]} 21. Rc1 {[%emt 0:19:26] And now bxc5 would win.} cxb4 {[%emt 0:11:28]} 22. Na2 {[%emt 0:01:23][%cal Bc3a2,Ba2b4,Bb4c6][%mdl 32]} Ra8 {[%emt 0:06:08]} 23. Nxb4 {[%emt 0:01:32][%cal Oe4e5] Black must now prevent e5!} Ra4 $2 {[%emt 0:04:26] Black cannot hold the game after this.} (23... fxe4 $16 {was called for.} 24. Bf2 Qb7) 24. Nc6 $18 {[%emt 0:03:29]} Qb7 {[%emt 0:03:45] [#]} 25. e5 {[%emt 0:04:27][%mdl 512]} dxe5 {[%emt 0:05:47]} (25... Kh8 26. h3) 26. fxe5 {[%emt 0:01:25]} Nxe5 {[%emt 0:01:06]} (26... Kh8 $142 27. Bc5 Re8) 27. Nxe5 {[%emt 0:00:25] d6 would be deadly.} Bxe5 {[%emt 0:00:25]} 28. d6 {[%emt 0:01:11]} Qg7 {[%emt 0:03:46]} 29. Qd5+ {[%emt 0:06:58]} Kh8 {[%emt 0:01:08]} 30. Bg5 $2 {[%emt 0:02:40]} (30. Rc7 Bd7 31. Rxd7 {[%mdl 64] Deflection} Qxd7 32. Qxe5+ Qg7 33. Bf4) 30... Re4 $2 {[%emt 0:05:42]} (30... Bc3) 31. Bxe4 {[%emt 0:01:40][%cal Oc1c8] Hoping for Rxc8!} Bd4+ {[%emt 0:00:42]} 32. Kh1 {[%emt 0:00:33][%cal Oc1c8] Rxc8! would kill now.} fxe4 {[%emt 0:00:31] [#]} 33. Rxc8 $1 {[%emt 0:01:23][%mdl 576] Promotion} Rxc8 {[%emt 0:00:45]} 34. d7 {[%emt 0:00:06] Weighted Error Value: White=0.36/Black=0.89} 1-0